fUSD/lending_fUSD_20240530
["ID","MTS","AMOUNT","RATE_DAILY","PERIOD"]
[328203884,1717057839224,-500.0,0.00028995,7]
[328203886,1717057839234,-500.0,0.00028995,7]
[328203888,1717057839244,-500.0,0.00028995,7]
[328203890,1717057839254,-500.0,0.00028995,7]
[328203892,1717057839264,-500.0,0.00028995,7]
[328203894,1717057839275,-500.0,0.00028995,7]
[328203896,1717057839284,-500.0,0.00028995,7]
[328203898,1717057839294,-500.0,0.00028995,7]
[328203900,1717057839304,-500.0,0.00028995,7]
[328203902,1717057839315,-500.0,0.00028995,7]
[328203904,1717057839325,-500.0,0.00028995,7]
[328203905,1717057839335,-500.0,0.00028995,7]
[328203908,1717057839345,-500.0,0.00028995,7]
[328203909,1717057839354,-1660.43,0.00028995,7]
[328203912,1717057839364,-500.0,0.00028995,7]
[328203913,1717057839374,-600.77,0.00028995,7]
[328203915,1717057839383,-500.0,0.00028995,7]
[328203917,1717057839393,-563.95,0.00028995,7]
[328203919,1717057839403,-500.0,0.00028995,7]
[328203921,1717057839413,-500.0,0.00028995,7]
[328203923,1717057839423,-500.0,0.00028995,7]
[328203925,1717057839434,-500.0,0.00028995,7]
[328203927,1717057839444,-742.41,0.00028995,7]
[328203929,1717057839454,-1129.96,0.00028995,7]
[328203931,1717057839463,-528.84,0.00028995,7]
[328203933,1717057839473,-500.0,0.00028995,7]
[328203935,1717057839483,-500.0,0.00028995,7]
[328203937,1717057839492,-500.0,0.00028995,7]
[328203939,1717057839501,-500.0,0.00028995,7]
[328203941,1717057839509,-500.0,0.00028995,7]
[328203943,1717057839518,-2395.78,0.00028995,7]
[328203945,1717057839526,-500.0,0.00028995,7]
[328203947,1717057839535,-500.0,0.00028995,7]
[328203949,1717057839543,-500.0,0.00028995,7]
[328203951,1717057839551,-500.0,0.00028995,7]
[328203953,1717057839560,-526.39,0.00028995,7]
[328203955,1717057839569,-500.0,0.00028995,7]
[328203956,1717057839579,-500.0,0.00028995,7]
[328203959,1717057839590,-500.0,0.00028995,7]
[328203960,1717057839600,-736.02,0.00028995,7]
[328203962,1717057839609,-500.0,0.00028995,7]
[328203964,1717057839619,-480.45251059,0.00028995,7]
[328203966,1717057839630,-609.39,0.00028995,7]
[328203968,1717057839640,-1119.98,0.00028995,7]
[328203970,1717057839649,-500.0,0.00028995,7]
[328203972,1717057839658,-500.0,0.00028995,7]
[328203974,1717057839668,-1348.15,0.00028995,7]
[328203976,1717057839677,-3579.27,0.00028995,7]
[328203978,1717057839687,-500.0,0.00028995,7]
[328203980,1717057839696,-500.0,0.00028995,7]
[328203982,1717057839705,-544.99,0.00028995,7]
[328203983,1717057839719,-500.0,0.00028995,7]
[328203984,1717057839729,-1159.1,0.00028995,7]
[328203985,1717057839739,-500.0,0.00028995,7]
[328203986,1717057839749,-500.0,0.00028995,7]
[328203987,1717057839761,-500.0,0.00028995,7]
[328203988,1717057839771,-500.0,0.00028995,7]
[328203989,1717057839781,-500.0,0.00028995,7]
[328203990,1717057839794,-500.0,0.00028995,7]
[328203991,1717057839804,-500.0,0.00028995,7]
[328203992,1717057839814,-500.0,0.00028995,7]
[328203993,1717057839823,-500.0,0.00028995,7]
[328203994,1717057839836,-500.0,0.00028995,7]
[328203995,1717057839845,-500.0,0.00028995,7]
[328203996,1717057839855,-530.48875566,0.00028995,7]
[328203997,1717057839864,-500.0,0.00028995,7]
[328203998,1717057839874,-500.0,0.00028995,7]
[328203999,1717057839884,-500.0,0.00028995,7]
[328204000,1717057839894,-895.04,0.00028995,7]
[328204001,1717057839904,-500.0,0.00028995,7]
[328204002,1717057839913,-507.51903594,0.00028995,7]
[328204003,1717057839923,-157.80898856,0.00028996,2]
[328204004,1717057839932,-155.37709862,0.00028996,2]
[328204005,1717057839942,-656.21528318,0.00028996,2]
[328204006,1717057839951,-500.0,0.00028996,7]
[328204007,1717057839961,-712.6,0.00028996,7]
[328204008,1717057839971,-500.0,0.00028996,7]
[328204009,1717057839981,-837.56,0.00028996,7]
[328204010,1717057839990,-809.47,0.00028996,7]
[328204011,1717057840000,-500.0,0.00028996,7]
[328204012,1717057840010,-500.0,0.00028996,7]
[328204013,1717057840020,-500.0,0.00028996,7]
[328204014,1717057840030,-831.08,0.00028996,7]
[328204015,1717057840040,-500.0,0.00028996,7]
[328204016,1717057840050,-500.0,0.00028996,7]
[328204017,1717057840240,-1068.63,0.00028996,7]
[328204018,1717057840251,-80.3004531,0.00028996,7]
[328204019,1717057840266,-419.6995469,0.00028996,7]
[328204020,1717057840276,-397.0007031,0.00028996,7]
[328204021,1717057840293,-293.0292969,0.00028996,7]
[328204022,1717057840302,-500.0,0.00028996,7]
[328204023,1717057840314,-1215.28,0.00028996,7]
[328204024,1717057840325,-500.0,0.00028996,7]
[328204025,1717057840336,-1027.89,0.00028996,7]
[328204026,1717057840346,-500.0,0.00028996,7]
[328204027,1717057840356,-617.87,0.00028996,7]
[328204028,1717057840365,-500.0,0.00028996,7]
[328204029,1717057840374,-1517.43,0.00028996,7]
[328204030,1717057840383,-426.65407753,0.00028996,7]
[328204031,1717057840393,-20000.0,0.00028996,2]
[328204032,1717057840404,-616.38,0.00028996,7]
[328204033,1717057840413,-938.92,0.00028996,7]
[328204034,1717057840424,-532.33491001,0.00028996,7]
[328204035,1717057840434,-500.0,0.00028996,7]
[328204036,1717057840444,-511.14,0.00028996,7]
[328204037,1717057840454,-1207.79,0.00028996,7]
[328204038,1717057840464,-500.0,0.00028996,2]
[328204039,1717057840474,-706.76,0.00028996,7]
[328204040,1717057840484,-632.24,0.00028996,7]
[328204041,1717057840493,-500.0,0.00028996,2]
[328204042,1717057840503,-182.37288865,0.00028996,7]
[328204043,1717057840515,-251.16883427,0.00028996,7]
[328204045,1717057840528,-669.78827708,0.00028996,7]
[328204047,1717057840537,-732.87,0.00028996,7]
[328204049,1717057840547,-915.49,0.00028996,7]
[328204052,1717057840557,-500.0,0.00028996,7]
[328204054,1717057840567,-710.1,0.00028996,7]
[328204056,1717057840576,-205.47393696,0.00028996,7]
[328204057,1717057840595,-355.43606304,0.00028996,7]
[328204058,1717057840605,-500.0,0.00028996,7]
[328204059,1717057840615,-505.99,0.00028996,7]
[328204060,1717057840625,-190.328745,0.00028996,2]
[328204061,1717057840636,-768.36,0.00028996,2]
[328204062,1717057840645,-1324.91,0.00028996,7]
[328204063,1717057840655,-725.99,0.00028996,7]
[328204064,1717057840665,-500.0,0.00028996,7]
[328204065,1717057840675,-500.0,0.00028996,2]
[328204066,1717057840685,-663.08,0.00028996,7]
[328204067,1717057840695,-315.50568015,0.00028996,7]
[328204068,1717057840708,-725.61,0.00028996,7]
[328204069,1717057840719,-500.0,0.00028996,7]
[328204070,1717057840729,-529.41,0.00028996,7]
[328204071,1717057840739,-500.0,0.00028996,7]
[328204072,1717057840750,-870.34,0.00028996,7]
[328204073,1717057840760,-674.37,0.00028996,7]
[328204074,1717057840770,-566.13,0.00028996,7]
[328204075,1717057840780,-500.0,0.00028996,7]
[328204076,1717057840791,-500.0,0.00028996,7]
[328204077,1717057840801,-500.0,0.00028996,7]
[328204078,1717057840812,-500.0,0.00028996,7]
[328204079,1717057840823,-500.0,0.00028996,7]
[328204080,1717057840836,-500.0,0.00028996,7]
[328204081,1717057840847,-1333.95,0.00028996,7]
[328204082,1717057840857,-538.99,0.00028996,7]
[328204083,1717057840868,-500.0,0.00028996,7]
[328204084,1717057840878,-621.55,0.00028996,7]
[328204085,1717057840888,-500.0,0.00028996,7]
[328204086,1717057840900,-500.0,0.00028996,7]
[328204087,1717057840910,-500.0,0.00028996,7]
[328204088,1717057840921,-500.0,0.00028996,7]
[328204089,1717057840931,-500.0,0.00028996,7]
[328204090,1717057840941,-500.0,0.00028996,7]
[328204091,1717057840951,-500.0,0.00028996,7]
[328204092,1717057840961,-500.0,0.00028996,7]
[328204093,1717057840971,-500.0,0.00028996,7]
[328204094,1717057840981,-500.0,0.00028996,7]
[328204095,1717057840991,-500.0,0.00028996,7]
[328204096,1717057841001,-500.0,0.00028996,7]
[328204097,1717057841011,-500.0,0.00028996,7]
[328204098,1717057841020,-500.0,0.00028996,7]
[328204099,1717057841030,-646.47,0.00028996,7]
[328204100,1717057841040,-500.0,0.00028996,7]
[328204101,1717057841049,-500.0,0.00028996,7]
[328204102,1717057841059,-542.29,0.00028996,7]
[328204103,1717057841068,-722.45,0.00028996,7]
[328204104,1717057841078,-612.43,0.00028996,7]
[328204105,1717057841090,-500.0,0.00028996,7]
[328204106,1717057841101,-650.39,0.00028996,7]
[328204107,1717057841110,-500.0,0.00028996,7]
[328204108,1717057841120,-500.0,0.00028996,7]
[328204109,1717057841130,-500.0,0.00028996,7]
[328204110,1717057841140,-599.14,0.00028996,7]
[328204111,1717057841149,-500.0,0.00028996,7]
[328204112,1717057841159,-500.0,0.00028996,7]
[328204113,1717057841169,-500.0,0.00028996,7]
[328204114,1717057841179,-591.81,0.00028996,7]
[328204115,1717057841189,-510.84018753,0.00028996,7]
[328204116,1717057841199,-500.0,0.00028996,7]
[328204117,1717057841208,-500.0,0.00028996,7]
[328204118,1717057841218,-628.05,0.00028996,7]
[328204119,1717057841228,-704.92,0.00028996,7]
[328204120,1717057841238,-797.28,0.00028996,7]
[328204121,1717057841248,-500.0,0.00028996,7]
[328204122,1717057841258,-620.78,0.00028996,7]
[328204123,1717057841269,-500.0,0.00028996,7]
[328204124,1717057841279,-790.77,0.00028996,7]
[328204125,1717057841289,-234.67,0.00028996,7]
[328204126,1717057841299,-604.15,0.00028996,7]
[328204127,1717057841309,-500.0,0.00028996,7]
[328204128,1717057841320,-500.0,0.00028996,7]
[328204129,1717057841331,-500.0,0.00028996,7]
[328204130,1717057841343,-500.0,0.00028996,7]
[328204131,1717057841352,-279.44084597,0.00028996,7]
[328204132,1717057841362,-500.0,0.00028996,7]
[328204133,1717057841372,-500.0,0.00028996,7]
[328204134,1717057841382,-500.0,0.00028996,7]
[328204135,1717057841392,-500.0,0.00028996,7]
[328204136,1717057841401,-500.0,0.00028996,7]
[328204137,1717057841411,-500.0,0.00028996,7]
[328204138,1717057841420,-500.0,0.00028996,7]
[328204139,1717057841431,-500.0,0.00028996,7]
[328204140,1717057841440,-500.0,0.00028996,7]
[328204141,1717057841449,-500.0,0.00028996,7]
[328204142,1717057841459,-500.0,0.00028996,7]
[328204143,1717057841469,-500.0,0.00028996,7]
[328204144,1717057841479,-500.0,0.00028996,7]
[328204145,1717057841488,-500.0,0.00028996,7]
[328204146,1717057841499,-500.0,0.00028996,7]
[328204147,1717057841508,-500.0,0.00028996,7]
[328204148,1717057841518,-526.39321169,0.00028996,7]
[328204149,1717057841527,-500.0,0.00028996,7]
[328204150,1717057841537,-630.68,0.00028996,7]
[328204151,1717057841547,-500.0,0.00028996,7]
[328204152,1717057841557,-609.27,0.00028996,7]
[328204153,1717057841567,-500.0,0.00028996,7]
[328204154,1717057841577,-500.0,0.00028996,7]
[328204155,1717057841592,-500.0,0.00028996,7]
[328204156,1717057841602,-1208.5,0.00028996,7]
[328204157,1717057841612,-565.08,0.00028996,7]
[328204158,1717057841622,-500.0,0.00028996,7]
[328204159,1717057841633,-500.0,0.00028996,7]
[328204160,1717057841643,-500.0,0.00028996,7]
[328204161,1717057841653,-500.0,0.00028996,7]
[328204162,1717057841663,-500.0,0.00028996,7]
[328204163,1717057841672,-500.0,0.00028996,7]
[328204164,1717057841682,-500.0,0.00028996,7]
[328204165,1717057841692,-500.0,0.00028996,7]
[328204167,1717057841702,-545.29095537,0.00028996,7]
[328204169,1717057841711,-500.0,0.00028996,7]
[328204171,1717057841725,-572.84,0.00028996,7]
[328204173,1717057841734,-500.0,0.00028996,7]
[328204175,1717057841744,-514.68,0.00028996,7]
[328204177,1717057841755,-500.0,0.00028996,7]
[328204179,1717057841764,-500.0,0.00028996,7]
[328204181,1717057841773,-500.0,0.00028996,7]
[328204183,1717057841782,-500.0,0.00028996,7]
[328204185,1717057841793,-500.0,0.00028996,7]
[328204187,1717057841802,-500.0,0.00028996,7]
[328204189,1717057841812,-500.0,0.00028996,7]
[328204190,1717057841821,-500.0,0.00028996,7]
[328204192,1717057841831,-500.0,0.00028996,7]
[328204194,1717057841841,-500.0,0.00028996,7]
[328204196,1717057841850,-500.0,0.00028996,7]
[328204198,1717057841860,-500.0,0.00028996,7]
[328204199,1717057841870,-500.0,0.00028996,7]
[328204200,1717057841879,-500.0,0.00028996,7]
[328204201,1717057841889,-724.98,0.00028996,7]
[328204202,1717057841899,-500.0,0.00028996,7]
[328204203,1717057841908,-500.0,0.00028996,7]
[328204204,1717057841918,-500.0,0.00028996,7]
[328204205,1717057841928,-150.11386742,0.00028996,7]
[328204206,1717057841951,-349.88613258,0.00028996,7]
[328204207,1717057841961,-500.0,0.00028996,7]
[328204208,1717057841971,-500.0,0.00028996,7]
[328204209,1717057841981,-500.0,0.00028996,7]
[328204210,1717057841990,-500.0,0.00028996,7]
[328204211,1717057842000,-500.0,0.00028996,7]
[328204212,1717057842009,-500.0,0.00028996,7]
[328204213,1717057842018,-500.0,0.00028996,7]
[328204214,1717057842027,-500.0,0.00028996,7]
[328204215,1717057842037,-500.0,0.00028996,7]
[328204216,1717057842046,-500.0,0.00028996,7]
[328204217,1717057842056,-500.0,0.00028996,7]
[328204218,1717057842065,-500.0,0.00028996,7]
[328204219,1717057842074,-500.0,0.00028996,7]
[328204220,1717057842084,-5328.14,0.00028996,7]
[328204221,1717057842094,-500.0,0.00028996,7]
[328204222,1717057842103,-500.0,0.00028996,7]
[328204223,1717057842113,-500.0,0.00028996,7]
[328204224,1717057842123,-500.0,0.00028996,7]
[328204225,1717057842132,-679.76,0.00028996,7]
[328204226,1717057842141,-500.0,0.00028996,7]
[328204227,1717057842150,-500.0,0.00028996,7]
[328204228,1717057842159,-528.46339295,0.00028996,7]
[328204229,1717057842169,-500.0,0.00028996,7]
[328204230,1717057842178,-500.0,0.00028996,7]
[328204231,1717057842188,-500.0,0.00028996,7]
[328204232,1717057842197,-500.0,0.00028996,7]
[328204233,1717057842207,-500.0,0.00028996,7]
[328204234,1717057842216,-500.0,0.00028996,7]
[328204235,1717057842226,-500.0,0.00028996,7]
[328204236,1717057842235,-500.0,0.00028996,7]
[328204237,1717057842246,-500.0,0.00028996,7]
[328204238,1717057842255,-500.0,0.00028996,7]
[328204239,1717057842265,-500.0,0.00028996,7]
[328204240,1717057842275,-500.0,0.00028996,7]
[328204241,1717057842285,-500.0,0.00028996,7]
[328204242,1717057842294,-500.0,0.00028996,7]
[328204243,1717057842304,-1213.48,0.00028996,7]
[328204244,1717057842315,-550.98,0.00028996,7]
[328204245,1717057842324,-487.69431042,0.00028996,7]
[328204246,1717057842334,-500.0,0.00028996,7]
[328204247,1717057842348,-500.0,0.00028996,7]
[328204248,1717057842357,-500.0,0.00028996,7]
[328204249,1717057842367,-500.0,0.00028996,7]
[328204250,1717057842378,-500.0,0.00028996,7]
[328204251,1717057842387,-500.0,0.00028996,7]
[328204252,1717057842397,-500.0,0.00028996,7]
[328204253,1717057842407,-500.0,0.00028996,7]
[328204254,1717057842416,-500.0,0.00028996,7]
[328204255,1717057842425,-500.0,0.00028996,7]
[328204256,1717057842435,-1447.38,0.00028996,7]
[328204257,1717057842445,-500.0,0.00028996,7]
[328204258,1717057842454,-500.0,0.00028996,7]
[328204259,1717057842463,-500.0,0.00028996,7]
[328204260,1717057842472,-500.0,0.00028996,7]
[328204261,1717057842482,-500.0,0.00028996,7]
[328204262,1717057842491,-533.6,0.00028996,7]
[328204263,1717057842501,-500.0,0.00028996,7]
[328204264,1717057842510,-500.0,0.00028996,7]
[328204265,1717057842520,-500.0,0.00028996,7]
[328204266,1717057842529,-500.0,0.00028996,7]
[328204267,1717057842538,-500.0,0.00028996,7]
[328204268,1717057842548,-500.0,0.00028996,7]
[328204269,1717057842558,-500.0,0.00028996,7]
[328204270,1717057842567,-500.0,0.00028996,7]
[328204271,1717057842576,-500.0,0.00028996,7]
[328204272,1717057842585,-500.0,0.00028996,7]
[328204273,1717057842597,-500.0,0.00028996,7]
[328204274,1717057842606,-2182.01,0.00028996,7]
[328204275,1717057842616,-500.0,0.00028996,7]
[328204276,1717057842625,-500.0,0.00028996,7]
[328204277,1717057842635,-500.0,0.00028996,7]
[328204278,1717057842645,-500.0,0.00028996,7]
[328204279,1717057842655,-500.0,0.00028996,7]
[328204280,1717057842664,-500.0,0.00028996,7]
[328204281,1717057842674,-500.0,0.00028996,7]
[328204282,1717057842684,-500.0,0.00028996,7]
[328204283,1717057842694,-500.0,0.00028996,7]
[328204284,1717057842704,-500.0,0.00028996,7]
[328204285,1717057842718,-500.0,0.00028996,7]
[328204286,1717057842728,-500.0,0.00028996,7]
[328204287,1717057842737,-500.0,0.00028996,7]
[328204288,1717057842747,-500.0,0.00028996,7]
[328204289,1717057842758,-940.49,0.00028996,7]
[328204290,1717057842768,-500.0,0.00028996,7]
[328204291,1717057842778,-500.0,0.00028996,7]
[328204292,1717057842788,-500.0,0.00028996,7]
[328204293,1717057842797,-500.0,0.00028996,7]
[328204294,1717057842807,-2034.44,0.00028996,7]
[328204295,1717057842816,-500.0,0.00028996,7]
[328204296,1717057842826,-500.0,0.00028996,7]
[328204297,1717057842836,-500.0,0.00028996,7]
[328204298,1717057842849,-500.0,0.00028996,7]
[328204299,1717057842858,-505.98,0.00028996,7]
[328204300,1717057842867,-500.0,0.00028996,7]
[328204301,1717057842876,-500.0,0.00028996,7]
[328204302,1717057842885,-500.0,0.00028996,7]
[328204303,1717057842894,-500.0,0.00028996,7]
[328204304,1717057842903,-500.0,0.00028996,7]
[328204305,1717057842912,-500.0,0.00028996,7]
[328204306,1717057842921,-500.0,0.00028996,7]
[328204307,1717057842931,-793.38,0.00028996,7]
[328204308,1717057842940,-500.0,0.00028996,7]
[328204309,1717057842949,-1691.24,0.00028996,7]
[328204310,1717057842959,-500.0,0.00028996,7]
[328204311,1717057842968,-500.0,0.00028996,7]
[328204313,1717057842977,-500.0,0.00028996,7]
[328204315,1717057842987,-764.23,0.00028996,7]
[328204317,1717057842996,-500.0,0.00028996,7]
[328204319,1717057843006,-500.0,0.00028996,7]
[328204338,1717057843161,-500.0,0.00028996,7]
[328204340,1717057843171,-500.0,0.00028996,7]
[328204342,1717057843182,-1846.15,0.00028996,7]
[328204344,1717057843191,-500.0,0.00028996,7]
[328204346,1717057843201,-500.0,0.00028996,7]
[328204347,1717057843210,-500.0,0.00028996,7]
[328204349,1717057843219,-500.0,0.00028996,7]
[328204351,1717057843228,-1269.09,0.00028996,7]
[328204353,1717057843238,-500.0,0.00028996,7]
[328204355,1717057843247,-500.0,0.00028996,7]
[328204357,1717057843256,-500.0,0.00028996,7]
[328204359,1717057843266,-500.0,0.00028996,7]
[328204361,1717057843275,-500.0,0.00028996,7]
[328204363,1717057843285,-500.0,0.00028996,7]
[328204364,1717057843295,-500.0,0.00028996,7]
[328204365,1717057843304,-500.0,0.00028996,7]
[328204366,1717057843313,-509.04,0.00028996,7]
[328204367,1717057843322,-573.25413418,0.00028996,7]
[328204368,1717057843331,-500.0,0.00028996,7]
[328204369,1717057843340,-322.86768965,0.00028997,2]
[328204370,1717057843348,-353.32431734,0.00028997,7]
[328204371,1717057843357,-500.0,0.00028997,7]
[328204372,1717057843366,-419.94027421,0.00028997,7]
[328204373,1717057843374,-500.0,0.00028997,7]
[328204374,1717057843383,-578.05522375,0.00028997,7]
[328204375,1717057843392,-512.61471334,0.00028997,7]
[328204376,1717057843401,-528.12910048,0.00028997,7]
[328204377,1717057843410,-510.24427952,0.00028997,7]
[328204378,1717057843419,-443.15409623,0.00028997,7]
[328204379,1717057843430,-500.0,0.00028997,7]
[328204380,1717057843440,-523.88866493,0.00028997,7]
[328204381,1717057843450,-500.0,0.00028997,7]
[328204382,1717057843459,-430.20305035,0.00028997,7]
[328204383,1717057843468,-529.39391073,0.00028997,2]
[328204384,1717057843477,-251.23079,0.00028997,7]
[328204385,1717057843487,-233.55811458,0.00028997,7]
[328204386,1717057843496,-500.0,0.00028997,7]
[328204387,1717057843505,-516.45214216,0.00028997,7]
[328204388,1717057843515,-507.36986973,0.00028997,7]
[328204389,1717057843524,-500.0,0.00028997,7]
[328204390,1717057843533,-248.57859632,0.00028997,7]
[328204391,1717057843542,-424.37722457,0.00028997,7]
[328204392,1717057843551,-524.24922485,0.00028997,7]
[328204393,1717057843561,-312.06067968,0.00028997,7]
[328204394,1717057843570,-509.41094276,0.00028997,7]
[328204395,1717057843580,-220.26860682,0.00028997,7]
[328204396,1717057843589,-179.38493567,0.00028997,7]
[328204397,1717057843598,-325.38415523,0.00028997,2]
[328204398,1717057843607,-299.66946,0.00028997,7]
[328204399,1717057843617,-1000.0,0.00028997,2]
[328204400,1717057843626,-500.0,0.00028997,7]
[328204401,1717057843635,-500.0,0.00028997,7]
[328204402,1717057843644,-500.0,0.00028997,7]
[328204403,1717057843654,-202.68923268,0.00028997,7]
[328204404,1717057843664,-500.0,0.00028997,7]
[328204405,1717057843673,-542.48160519,0.00028997,7]
[328204406,1717057843682,-500.0,0.00028997,7]
[328204407,1717057843691,-544.59977602,0.00028997,7]
[328204408,1717057843700,-500.0,0.00028997,7]
[328204409,1717057843715,-500.0,0.00028997,7]
[328204410,1717057843725,-500.0,0.00028997,7]
[328204411,1717057843734,-547.22773752,0.00028997,7]
[328204412,1717057843743,-500.0,0.00028997,7]
[328204413,1717057843754,-500.0,0.00028997,7]
[328204414,1717057843764,-500.0,0.00028997,7]
[328204415,1717057843773,-500.0,0.00028997,7]
[328204416,1717057843783,-500.0,0.00028997,7]
[328204417,1717057843793,-500.0,0.00028997,7]
[328204418,1717057843803,-500.0,0.00028997,7]
[328204419,1717057843812,-500.0,0.00028997,7]
[328204420,1717057843821,-500.0,0.00028997,7]
[328204421,1717057843831,-520.22641908,0.00028997,7]
[328204422,1717057843842,-500.0,0.00028997,7]
[328204423,1717057843851,-500.0,0.00028997,7]
[328204424,1717057843860,-500.0,0.00028997,7]
[328204425,1717057843870,-312.24764756,0.00028997,7]
[328204426,1717057843879,-513.63492266,0.00028997,7]
[328204427,1717057843889,-500.0,0.00028997,7]
[328204428,1717057843898,-500.0,0.00028997,7]
[328204429,1717057843908,-519.1442854,0.00028997,7]
[328204430,1717057843917,-500.0,0.00028997,7]
[328204431,1717057843927,-505.0349716,0.00028997,7]
[328204432,1717057843936,-522.00487613,0.00028997,7]
[328204433,1717057843946,-500.0,0.00028997,2]
[328204434,1717057843956,-525.49587468,0.00028997,7]
[328204435,1717057843966,-500.0,0.00028997,7]
[328204436,1717057843976,-500.0,0.00028997,2]
[328204437,1717057843985,-500.0,0.00028997,7]
[328204438,1717057843994,-587.69732097,0.00028997,7]
[328204439,1717057844003,-500.0,0.00028997,7]
[328204440,1717057844013,-520.92377672,0.00028997,7]
[328204441,1717057844021,-511.20744861,0.00028997,7]
[328204442,1717057844031,-521.95001444,0.00028997,7]
[328204443,1717057844040,-500.0,0.00028997,7]
[328204444,1717057844049,-500.0,0.00028997,7]
[328204445,1717057844059,-529.66119609,0.00028997,7]
[328204446,1717057844069,-521.11093965,0.00028997,7]
[328204447,1717057844078,-500.0,0.00028997,7]
[328204448,1717057844087,-511.63088651,0.00028997,7]
[328204449,1717057844102,-500.0,0.00028997,7]
[328204450,1717057844111,-500.0,0.00028997,7]
[328204451,1717057844120,-531.65422394,0.00028997,7]
[328204452,1717057844129,-500.0,0.00028997,7]
[328204453,1717057844139,-526.02652968,0.00028997,7]
[328204454,1717057844148,-500.0,0.00028997,7]
[328204455,1717057844157,-500.0,0.00028997,7]
[328204456,1717057844166,-500.0,0.00028997,7]
[328204457,1717057844175,-500.0,0.00028997,7]
[328204458,1717057844184,-513.16306365,0.00028997,7]
[328204459,1717057844193,-500.0,0.00028997,7]
[328204460,1717057844203,-500.0,0.00028997,7]
[328204461,1717057844213,-500.0,0.00028997,7]
[328204462,1717057844222,-542.43441227,0.00028997,7]
[328204463,1717057844231,-612.06868212,0.00028997,7]
[328204464,1717057844239,-500.0,0.00028997,7]
[328204465,1717057844249,-500.0,0.00028997,7]
[328204466,1717057844258,-500.0,0.00028997,7]
[328204467,1717057844267,-341.47947617,0.00028997,7]
[328204468,1717057844277,-500.0,0.00028997,7]
[328204469,1717057844287,-500.0,0.00028997,7]
[328204470,1717057844296,-500.0,0.00028997,7]
[328204471,1717057844305,-520.70209878,0.00028997,7]
[328204472,1717057844314,-500.0,0.00028997,7]
[328204473,1717057844323,-500.0,0.00028997,7]
[328204474,1717057844333,-500.0,0.00028997,7]
[328204475,1717057844346,-500.0,0.00028997,7]
[328204476,1717057844355,-500.0,0.00028997,7]
[328204477,1717057844364,-500.0,0.00028997,7]
[328204478,1717057844373,-519.05629634,0.00028997,7]
[328204479,1717057844382,-500.0,0.00028997,7]
[328204480,1717057844390,-500.0,0.00028997,7]
[328204481,1717057844400,-500.0,0.00028997,7]
[328204482,1717057844408,-560.95,0.00028997,2]
[328204483,1717057844418,-528.45971161,0.00028997,7]
[328204484,1717057844427,-500.0,0.00028997,7]
[328204485,1717057844436,-500.0,0.00028997,7]
[328204486,1717057844446,-523.52698311,0.00028997,7]
[328204487,1717057844455,-500.0,0.00028997,7]
[328204488,1717057844466,-500.0,0.00028997,7]